[Event "2nd Irena Warakomska Memorial-A"]
[Site "Suwalki"]
[Date "2018.08.07"]
[Round "8"]
[White "Yevseev, Denis"]
[Black "Tihonov, Jurij"]
[Result "0-1"]
[ECO "B38"]
[WhiteElo "2513"]
[BlackElo "2385"]
[Annotator "ChessBase"]
[PlyCount "100"]
[EventDate "2018.08.01"]
[EventType "swiss"]
[EventCountry "POL"]
[SourceTitle "playchess.com"]
[Source "ChessBase"]
[SourceQuality "1"]
[TimeControl "40/5400+30:1800+30"]

1. Nf3 {[%emt 0:00:00]} c5 {[%emt 0:00:17]} 2. c4 {[%emt 0:00:00]} g6 {[%emt 0:00:16]} 3. d4 {[%emt 0:00:17]} cxd4 {[%emt 0:00:15]} 4. Nxd4 {[%emt 0:00:08]} Bg7 {[%emt 0:00:48]} 5. e4 {[%emt 0:00:21]} Nc6 {[%emt 0:00:14]} 6. Be3 {[%emt 0:00:17]} Nf6 {[%emt 0:00:12]} 7. Nc3 {[%emt 0:00:06]} d6 {[%emt 0:00:23]} 8. Be2 {[%emt 0:00:27]} O-O {[%emt 0:00:17]} 9. O-O {[%emt 0:00:16]} Nxd4 {[%emt 0:00:22]} 10. Bxd4 {[%emt 0:00:14]} Nd7 {[%emt 0:00:24]} 11. Bxg7 {[%emt 0:18:06]} Kxg7 {[%emt 0:00:05]} 12. Qd2 {[%emt 0:01:08]} b6 {[%emt 0:09:04]} 13. Rae1 {[%emt 0:05:04]} Bb7 {[%emt 0:01:46]} 14. Bd3 {[%emt 0:07:37]} f6 {[%emt 0:12:28]} 15. Re3 {[%emt 0:01:48]} Rf7 {[%emt 0:09:44]} 16. Rh3 {[%emt 0:06:38]} Kh8 {[%emt 0:02:24]} 17. f4 {[%emt 0:07:56]} e5 {[%emt 0:01:07]} 18. f5 {[%emt 0:01:36]} gxf5 {[%emt 0:05:56]} 19. Rxf5 {[%emt 0:01:20]} Nc5 {[%emt 0:00:11]} 20. Rf1 {[%emt 0:02:34]} Qe7 {[%emt 0:01:12]} 21. Rg3 {[%emt 0:13:06]} Rg7 {[%emt 0:03:28]} 22. Rxg7 {[%emt 0:01:31]} Qxg7 {[%emt 0:00:05]} 23. Bc2 {[%emt 0:08:46]} Rg8 {[%emt 0:06:18]} 24. g3 {[%emt 0:02:11]} Qe7 {[%emt 0:02:23]} 25. Qf2 {[%emt 0:04:09]} Rf8 {[%emt 0:03:26]} 26. Nd5 {[%emt 0:01:21]} Qg7 {[%emt 0:05:10]} 27. Qf5 {[%emt 0:02:38]} Bc8 {[%emt 0:07:29]} 28. Qh5 {[%emt 0:00:27]} Ne6 {[%emt 0:01:07]} 29. Bd1 {[%emt 0:02:05]} Bd7 {[%emt 0:13:12]} 30. Qh4 {[%emt 0:04:36]} Ng5 {[%emt 0:04:41]} 31. Bg4 {[%emt 0:00:21]} Bc6 {[%emt 0:00:11]} 32. Bf5 {[%emt 0:00:43]} Bxd5 {[%emt 0:00:20]} 33. cxd5 {[%emt 0:03:40]} Rf7 {[%emt 0:03:35]} 34. Qh5 {[%emt 0:01:12]} Rc7 {[%emt 0:00:23]} 35. Qe8+ {[%emt 0:02:01]} Qg8 {[%emt 0:00:04]} 36. Qa4 {[%emt 0:01:35]} Nf7 {[%emt 0:01:36]} 37. Kg2 {[%emt 0:01:12]} Qg5 {[%emt 0:00:55]} 38. Rf2 {[%emt 0:00:29]} Kg7 {[%emt 0:00:39]} 39. Be6 {[%emt 0:00:56]} Qe3 {[%emt 0:00:58]} 40. h4 {[%emt 0:00:00]} b5 {[%emt 0:00:00]} 41. Qxb5 {[%emt 0:03:03]} Qxe4+ {[%emt 0:05:02]} 42. Kh2 {[%emt 0:00:38]} Rc1 {[%emt 0:12:01]} 43. Rg2 {[%emt 0:00:05]} Qb1 {[%emt 0:05:13]} 44. Kh3 {[%emt 0:01:34]} Rh1+ {[%emt 0:01:46]} 45. Rh2 {[%emt 0:00:07]} Qg1 {[%emt 0:01:03]} 46. Qe2 {[%emt 0:02:44]} f5 {[%emt 0:04:32]} 47. Bxf7 {[%emt 0:03:42]} Rxh2+ {[%emt 0:02:49]} 48. Qxh2 {[%emt 0:00:04]} Qxh2+ {[%emt 0:00:23]} 49. Kxh2 {[%emt 0:00:04]} Kxf7 {[%emt 0:00:03]} 50. Kg2 {[%emt 0:20:03]} e4 {[%emt 0:00:43]} 0-1

[Event "2nd Irena Warakomska Memorial-A"]
[Site "Suwalki"]
[Date "2018.08.07"]
[Round "8"]
[White "Warakomski, Tomasz"]
[Black "Grinev, Valeriy"]
[Result "1/2-1/2"]
[ECO "B41"]
[WhiteElo "2512"]
[BlackElo "2416"]
[Annotator "RC"]
[PlyCount "53"]
[EventDate "2018.08.01"]
[EventType "swiss"]
[EventCountry "POL"]
[SourceTitle "playchess.com"]
[Source "ChessBase"]
[SourceQuality "1"]
[TimeControl "40/5400+30:1800+30"]

1. e4 {[%emt 0:00:00]} c5 {[%emt 0:00:00]} 2. Nf3 {[%emt 0:00:00]} e6 {[%emt 0:00:00]} 3. d4 {[%emt 0:00:00]} cxd4 {[%emt 0:00:02]} 4. Nxd4 {[%emt 0:00:00]} a6 {[%emt 0:00:11]} 5. c4 {[%emt 0:00:00]} Nf6 {[%emt 0:00:07]} 6. Nc3 {[%emt 0:00:00]} Qc7 {[%emt 0:00:06]} 7. Bd3 {[%emt 0:00:02]} Nc6 {[%emt 0:00:10]} 8. Nb3 {[%emt 0:00:04]} Ne5 {[%emt 0:00:47]} 9. O-O {[%emt 0:00:06]} Nxc4 {[%emt 0:04:13]} 10. Bxc4 {[%emt 0:00:12]} Qxc4 {[%emt 0:00:06]} 11. Re1 {[%emt 0:00:03]} d6 {[%emt 0:01:03]} 12. Bf4 {[%emt 0:00:25]} Qb4 {[%emt 0:22:59]} 13. Rc1 {[%emt 0:05:42]} Bd7 {[%emt 0:11:21]} 14. a3 {[%emt 0:16:01]} Qb6 {[%emt 0:00:09]} 15. Nd2 {[%emt 0:00:04]} Rc8 {[%emt 0:06:41]} 16. b3 {[%emt 0:02:59]} Be7 {[%emt 0:00:19]} 17. Nc4 {[%emt 0:01:12]} Rxc4 {[%emt 0:00:44]} 18. bxc4 {[%emt 0:00:06]} O-O {[%emt 0:00:09]} 19. Qd3 {[%emt 0:21:19]} Rd8 {[%emt 0:06:48]} 20. Rb1 {[%emt 0:05:10]} Qc6 {[%emt 0:00:45]} 21. f3 {[%emt 0:05:36]} Be8 {[%emt 0:01:32]} 22. Ne2 {[%emt 0:02:32]} Nd7 {[%emt 0:01:24]} 23. Qb3 {[%emt 0:02:55]} Nc5 {[%emt 0:00:47]} 24. Qe3 {[%emt 0:00:03]} h6 {[%emt 0:08:35]} 25. Nd4 {[%emt 0:07:33]} Qc8 {[%emt 0:00:52]} 26. Bg3 {[%emt 0:00:34]} Ba4 {[%emt 0:03:03]} 27. Qc3 {[%emt 0:03:15]} 1/2-1/2

[Event "2nd Irena Warakomska Memorial-A"]
[Site "Suwalki"]
[Date "2018.08.07"]
[Round "8"]
[White "Gleizerov, Evgeny"]
[Black "Sadzikowski, Daniel"]
[Result "1/2-1/2"]
[ECO "A62"]
[WhiteElo "2507"]
[BlackElo "2575"]
[Annotator "ChessBase"]
[PlyCount "56"]
[EventDate "2018.08.01"]
[EventType "swiss"]
[EventCountry "POL"]
[SourceTitle "playchess.com"]
[Source "ChessBase"]
[SourceQuality "1"]
[TimeControl "40/5400+30:1800+30"]

1. d4 {[%emt 0:00:00]} Nf6 {[%emt 0:00:00]} 2. c4 {[%emt 0:00:00]} e6 {[%emt 0:00:00]} 3. g3 {[%emt 0:00:00]} c5 {[%emt 0:00:00]} 4. d5 {[%emt 0:00:00]} exd5 {[%emt 0:00:00]} 5. cxd5 {[%emt 0:00:00]} d6 {[%emt 0:00:09]} 6. Nc3 {[%emt 0:00:00]} g6 {[%emt 0:00:04]} 7. Nf3 {[%emt 0:00:00]} Bg7 {[%emt 0:00:05]} 8. Bg2 {[%emt 0:00:00]} O-O {[%emt 0:00:07]} 9. O-O {[%emt 0:00:00]} Re8 {[%emt 0:00:08]} 10. Bf4 {[%emt 0:00:04]} Bf5 {[%emt 0:00:46]} 11. Nh4 {[%emt 0:00:32]} Bg4 {[%emt 0:00:04]} 12. h3 {[%emt 0:03:03]} Nh5 {[%emt 0:00:42]} 13. Bd2 {[%emt 0:05:52]} Bd7 {[%emt 0:00:09]} 14. Qb3 {[%emt 0:04:49]} b5 {[%emt 0:17:58]} 15. Nxb5 {[%emt 0:08:44]} Rxe2 {[%emt 0:02:11]} 16. Bc3 {[%emt 0:11:54]} Bxb5 {[%emt 0:19:58]} 17. Qxb5 {[%emt 0:02:42]} Re7 {[%emt 0:00:15]} 18. Rfe1 {[%emt 0:03:49]} Bxc3 {[%emt 0:03:07]} 19. bxc3 {[%emt 0:00:08]} Rxe1+ {[%emt 0:01:40]} 20. Rxe1 {[%emt 0:00:04]} Nd7 {[%emt 0:00:06]} 21. Nf3 {[%emt 0:04:30]} Nhf6 {[%emt 0:07:25]} 22. Nd2 {[%emt 0:03:15]} Nb6 {[%emt 0:02:36]} 23. c4 {[%emt 0:07:32]} Nbd7 {[%emt 0:07:55]} 24. Qa4 {[%emt 0:03:13]} Rb8 {[%emt 0:01:50]} 25. Bf1 {[%emt 0:04:00]} h5 {[%emt 0:06:36]} 26. Qxa7 {[%emt 0:05:01]} Ra8 {[%emt 0:00:07]} 27. Qb7 {[%emt 0:00:03]} Rxa2 {[%emt 0:00:13]} 28. Nf3 {[%emt 0:00:23]} Qa8 {[%emt 0:13:40]} 1/2-1/2

[Event "2nd Irena Warakomska Memorial-A"]
[Site "Suwalki"]
[Date "2018.08.07"]
[Round "8"]
[White "Nasuta, Grzegorz"]
[Black "Socko, Bartosz"]
[Result "0-1"]
[ECO "B12"]
[WhiteElo "2497"]
[BlackElo "2588"]
[Annotator "ChessBase"]
[PlyCount "88"]
[EventDate "2018.08.01"]
[EventType "swiss"]
[EventCountry "POL"]
[SourceTitle "playchess.com"]
[Source "ChessBase"]
[SourceQuality "1"]
[TimeControl "40/5400+30:1800+30"]

1. e4 {[%emt 0:00:00]} c6 {[%emt 0:00:00]} 2. d4 {[%emt 0:00:00]} d5 {[%emt 0:00:00]} 3. e5 {[%emt 0:00:00]} c5 {[%emt 0:00:00]} 4. dxc5 {[%emt 0:00:06]} e6 {[%emt 0:00:00]} 5. a3 {[%emt 0:00:09]} Bxc5 {[%emt 0:00:00]} 6. b4 {[%emt 0:00:33]} Be7 {[%emt 0:00:02]} 7. Nf3 {[%emt 0:08:55]} a5 {[%emt 0:00:20]} 8. b5 {[%emt 0:01:36]} Nd7 {[%emt 0:00:08]} 9. Bb2 {[%emt 0:03:02]} Nh6 {[%emt 0:00:23]} 10. Nbd2 {[%emt 0:04:46]} O-O {[%emt 0:05:52]} 11. Bd3 {[%emt 0:09:30]} a4 {[%emt 0:02:20]} 12. O-O {[%emt 0:14:03]} Nc5 {[%emt 0:01:44]} 13. Be2 {[%emt 0:00:34]} Bd7 {[%emt 0:03:18]} 14. c4 {[%emt 0:10:37]} dxc4 {[%emt 0:02:03]} 15. Bxc4 {[%emt 0:00:07]} Qb6 {[%emt 0:01:14]} 16. Nd4 {[%emt 0:04:10]} Rfd8 {[%emt 0:01:02]} 17. Qe2 {[%emt 0:00:49]} Rac8 {[%emt 0:04:42]} 18. Rfd1 {[%emt 0:01:27]} Nf5 {[%emt 0:04:58]} 19. N2f3 {[%emt 0:07:47]} Nxd4 {[%emt 0:02:03]} 20. Nxd4 {[%emt 0:00:09]} Be8 {[%emt 0:00:19]} 21. Kh1 {[%emt 0:04:37]} Ne4 {[%emt 0:03:52]} 22. Kg1 {[%emt 0:13:26]} Bg5 {[%emt 0:06:07]} 23. Nxe6 {[%emt 0:11:29]} Rxd1+ {[%emt 0:20:43]} 24. Rxd1 {[%emt 0:00:11]} Qxf2+ {[%emt 0:00:07]} 25. Qxf2 {[%emt 0:00:12]} Nxf2 {[%emt 0:00:04]} 26. Kxf2 {[%emt 0:00:53]} Bh4+ {[%emt 0:00:05]} 27. g3 {[%emt 0:03:43]} Rxc4 {[%emt 0:00:06]} 28. gxh4 {[%emt 0:00:12]} fxe6 {[%emt 0:00:11]} 29. Rc1 {[%emt 0:00:04]} Rxh4 {[%emt 0:05:38]} 30. Kg3 {[%emt 0:00:07]} Re4 {[%emt 0:00:07]} 31. Kf3 {[%emt 0:00:09]} Rh4 {[%emt 0:00:12]} 32. Kg3 {[%emt 0:00:01]} g5 {[%emt 0:01:26]} 33. Rc8 {[%emt 0:01:26]} Kf8 {[%emt 0:00:35]} 34. b6 {[%emt 0:01:00]} Rf4 {[%emt 0:01:58]} 35. Bc3 {[%emt 0:01:04]} h5 {[%emt 0:00:25]} 36. h4 {[%emt 0:00:34]} Rg4+ {[%emt 0:00:21]} 37. Kf2 {[%emt 0:00:05]} gxh4 {[%emt 0:00:19]} 38. Bb4+ {[%emt 0:00:26]} Kf7 {[%emt 0:00:11]} 39. Rc7+ {[%emt 0:00:15]} Kg6 {[%emt 0:00:05]} 40. Re7 {[%emt 0:00:00]} h3 {[%emt 0:00:00]} 41. Rxe6+ {[%emt 0:07:26]} Kf5 {[%emt 0:04:04]} 42. Rf6+ {[%emt 0:00:52]} Ke4 {[%emt 0:00:10]} 43. Rd6 {[%emt 0:00:56]} Rg2+ {[%emt 0:00:06]} 44. Kf1 {[%emt 0:00:36]} Bb5+ {[%emt 0:00:06]} 0-1

[Event "2nd Irena Warakomska Memorial-A"]
[Site "Suwalki"]
[Date "2018.08.07"]
[Round "8"]
[White "Socko, Monika"]
[Black "Marszalek, Maciej"]
[Result "1-0"]
[ECO "A50"]
[WhiteElo "2466"]
[BlackElo "2269"]
[Annotator "ChessBase"]
[PlyCount "121"]
[EventDate "2018.08.01"]
[EventType "swiss"]
[EventCountry "POL"]
[SourceTitle "playchess.com"]
[Source "ChessBase"]
[SourceQuality "1"]
[TimeControl "40/5400+30:1800+30"]

1. d4 {[%emt 0:00:00]} Nf6 {[%emt 0:00:00]} 2. c4 {[%emt 0:00:00]} c6 {[%emt 0:00:00]} 3. Nc3 {[%emt 0:01:07]} d5 {[%emt 0:00:00]} 4. cxd5 {[%emt 0:00:06]} cxd5 {[%emt 0:00:03]} 5. Bf4 {[%emt 0:00:04]} Nc6 {[%emt 0:00:31]} 6. e3 {[%emt 0:00:06]} Bf5 {[%emt 0:00:38]} 7. Qb3 {[%emt 0:00:40]} Na5 {[%emt 0:01:24]} 8. Qa4+ {[%emt 0:00:05]} Bd7 {[%emt 0:00:17]} 9. Qc2 {[%emt 0:00:05]} e6 {[%emt 0:00:37]} 10. Nf3 {[%emt 0:02:15]} Rc8 {[%emt 0:01:54]} 11. Bd3 {[%emt 0:00:57]} Be7 {[%emt 0:01:17]} 12. Ne5 {[%emt 0:04:13]} Nc6 {[%emt 0:11:52]} 13. a3 {[%emt 0:04:48]} a6 {[%emt 0:06:17]} 14. O-O {[%emt 0:02:27]} Nh5 {[%emt 0:04:08]} 15. Nxc6 {[%emt 0:04:20]} Bxc6 {[%emt 0:00:57]} 16. Be5 {[%emt 0:00:14]} Nf6 {[%emt 0:04:20]} 17. f4 {[%emt 0:10:30]} Ng4 {[%emt 0:02:25]} 18. Qe2 {[%emt 0:02:21]} Nxe5 {[%emt 0:00:56]} 19. fxe5 {[%emt 0:00:08]} g6 {[%emt 0:00:52]} 20. Qg4 {[%emt 0:12:40]} O-O {[%emt 0:08:37]} 21. Rf3 {[%emt 0:01:17]} Kg7 {[%emt 0:01:26]} 22. Raf1 {[%emt 0:04:33]} Bb5 {[%emt 0:02:09]} 23. Bxb5 {[%emt 0:08:10]} axb5 {[%emt 0:00:12]} 24. Ne2 {[%emt 0:00:11]} h5 {[%emt 0:10:51]} 25. Qh3 {[%emt 0:02:07]} Bg5 {[%emt 0:00:11]} 26. Nc3 {[%emt 0:09:02]} b4 {[%emt 0:06:11]} 27. axb4 {[%emt 0:00:47]} Qe7 {[%emt 0:04:00]} 28. Nb5 {[%emt 0:05:21]} f5 {[%emt 0:01:33]} 29. exf6+ {[%emt 0:01:26]} Rxf6 {[%emt 0:00:08]} 30. Rxf6 {[%emt 0:00:25]} Bxf6 {[%emt 0:00:02]} 31. Nc3 {[%emt 0:00:32]} Rf8 {[%emt 0:04:31]} 32. b5 {[%emt 0:02:15]} Bg5 {[%emt 0:01:01]} 33. Rxf8 {[%emt 0:01:04]} Kxf8 {[%emt 0:00:02]} 34. Qg3 {[%emt 0:01:00]} h4 {[%emt 0:04:21]} 35. Qe5 {[%emt 0:00:41]} Bf6 {[%emt 0:01:13]} 36. Qb8+ {[%emt 0:01:28]} Kf7 {[%emt 0:00:24]} 37. Kf2 {[%emt 0:00:41]} Bg5 {[%emt 0:00:52]} 38. Ne2 {[%emt 0:06:43]} Qd7 {[%emt 0:09:13]} 39. b6 {[%emt 0:01:55]} Bd8 {[%emt 0:00:22]} 40. Nf4 {[%emt 0:00:00]} Qe7 {[%emt 0:00:00]} 41. Ke2 {[%emt 0:18:14]} g5 {[%emt 0:05:15]} 42. Nd3 {[%emt 0:00:08]} Bxb6 {[%emt 0:01:01]} 43. Qh8 {[%emt 0:00:50]} Bc7 {[%emt 0:00:08]} 44. h3 {[%emt 0:00:18]} Bg3 {[%emt 0:02:18]} 45. Nc5 {[%emt 0:04:05]} Kg6 {[%emt 0:04:56]} 46. Qc8 {[%emt 0:02:25]} e5 {[%emt 0:00:22]} 47. Qg8+ {[%emt 0:00:49]} Kh6 {[%emt 0:00:41]} 48. Qxd5 {[%emt 0:05:16]} exd4 {[%emt 0:00:13]} 49. Qxd4 {[%emt 0:00:17]} Be5 {[%emt 0:04:25]} 50. Qd5 {[%emt 0:00:03]} Bxb2 {[%emt 0:00:30]} 51. Nxb7 {[%emt 0:00:03]} Be5 {[%emt 0:02:36]} 52. Nd8 {[%emt 0:01:26]} Bf6 {[%emt 0:00:47]} 53. Nf7+ {[%emt 0:00:26]} Kg6 {[%emt 0:05:08]} 54. Nd6 {[%emt 0:00:52]} Qd7 {[%emt 0:01:50]} 55. Qe4+ {[%emt 0:05:26]} Kh5 {[%emt 0:00:46]} 56. Kf3 {[%emt 0:01:17]} Bc3 {[%emt 0:01:43]} 57. Qg4+ {[%emt 0:03:10]} Qxg4+ {[%emt 0:00:03]} 58. hxg4+ {[%emt 0:00:01]} Kg6 {[%emt 0:00:10]} 59. Ke4 {[%emt 0:00:14]} Kf6 {[%emt 0:00:50]} 60. Kd5 {[%emt 0:00:09]} Bb2 {[%emt 0:00:19]} 61. e4 {[%emt 0:00:24]} 1-0

[Event "2nd Irena Warakomska Memorial-A"]
[Site "Suwalki"]
[Date "2018.08.07"]
[Round "8"]
[White "Omelja, Artem"]
[Black "Dzhuguryan, Tygran"]
[Result "1-0"]
[ECO "E16"]
[WhiteElo "2445"]
[BlackElo "2178"]
[Annotator "NA"]
[PlyCount "109"]
[EventDate "2018.08.01"]
[EventType "swiss"]
[EventCountry "POL"]
[SourceTitle "playchess.com"]
[Source "ChessBase"]
[SourceQuality "1"]
[TimeControl "40/5400+30:1800+30"]

1. d4 {[%emt 0:00:00]} Nf6 {[%emt 0:00:00]} 2. c4 {[%emt 0:00:00]} e6 {[%emt 0:00:00]} 3. Nf3 {[%emt 0:00:07]} Bb4+ {[%emt 0:00:19]} 4. Bd2 {[%emt 0:00:26]} Qe7 {[%emt 0:00:15]} 5. g3 {[%emt 0:00:32]} Nc6 {[%emt 0:00:14]} 6. Nc3 {[%emt 0:00:51]} d6 {[%emt 0:00:14]} 7. Bg2 {[%emt 0:00:55]} O-O {[%emt 0:00:08]} 8. O-O {[%emt 0:00:42]} a5 {[%emt 0:08:08]} 9. Rc1 {[%emt 0:03:38]} h6 {[%emt 0:08:47]} 10. Re1 {[%emt 0:17:20]} Bxc3 {[%emt 0:03:54]} 11. Bxc3 {[%emt 0:00:28]} e5 {[%emt 0:00:08]} 12. e4 {[%emt 0:05:58]} Bg4 {[%emt 0:01:06]} 13. d5 {[%emt 0:00:24]} Nb8 {[%emt 0:01:51]} 14. h3 {[%emt 0:03:04]} Bc8 {[%emt 0:04:57]} 15. Qd2 {[%emt 0:02:42]} a4 {[%emt 0:01:47]} 16. Qe3 {[%emt 0:07:41]} c5 {[%emt 0:04:07]} 17. Nd2 {[%emt 0:05:02]} Re8 {[%emt 0:09:12]} 18. f4 {[%emt 0:00:38]} Nbd7 {[%emt 0:01:41]} 19. Qf2 {[%emt 0:01:32]} Nf8 {[%emt 0:01:57]} 20. Nf3 {[%emt 0:01:37]} Ng6 {[%emt 0:00:21]} 21. f5 {[%emt 0:00:33]} Nf8 {[%emt 0:00:17]} 22. g4 {[%emt 0:00:15]} b5 {[%emt 0:02:06]} 23. cxb5 {[%emt 0:06:24]} Bd7 {[%emt 0:00:21]} 24. Bf1 {[%emt 0:01:53]} Reb8 {[%emt 0:00:04]} 25. Nd2 {[%emt 0:03:18]} Bxb5 {[%emt 0:03:43]} 26. Nc4 {[%emt 0:00:08]} Bxc4 {[%emt 0:01:05]} 27. Bxc4 {[%emt 0:00:07]} Ne8 {[%emt 0:00:12]} 28. h4 {[%emt 0:03:27]} Nh7 {[%emt 0:00:29]} 29. Kh2 {[%emt 0:00:34]} Nc7 {[%emt 0:00:23]} 30. Re3 {[%emt 0:01:44]} f6 {[%emt 0:00:23]} 31. Be1 {[%emt 0:01:25]} Nb5 {[%emt 0:00:24]} 32. Bxb5 {[%emt 0:00:47]} Rxb5 {[%emt 0:00:02]} 33. Ra3 {[%emt 0:00:19]} Qb7 {[%emt 0:00:21]} 34. Rc2 {[%emt 0:01:11]} Ra6 {[%emt 0:00:52]} 35. Qe2 {[%emt 0:00:58]} Nf8 {[%emt 0:02:17]} 36. Rg3 {[%emt 0:00:40]} Nh7 {[%emt 0:02:21]} 37. Bc3 {[%emt 0:00:23]} Rab6 {[%emt 0:00:53]} 38. Kg1 {[%emt 0:02:53]} Kf8 {[%emt 0:04:08]} 39. Kf2 {[%emt 0:00:47]} Ke8 {[%emt 0:00:11]} 40. Ke1 {[%emt 0:00:00]} Kd8 {[%emt 0:00:00]} 41. Kd1 {[%emt 0:00:50]} Kc8 {[%emt 0:05:24]} 42. Kc1 {[%emt 0:00:28]} Qa6 {[%emt 0:00:54]} 43. Be1 {[%emt 0:01:28]} Rb7 {[%emt 0:01:52]} 44. Ra3 {[%emt 0:00:38]} R5b6 {[%emt 0:00:21]} 45. Qxa6 {[%emt 0:03:05]} Rxa6 {[%emt 0:00:02]} 46. b4 {[%emt 0:01:07]} axb3 {[%emt 0:01:30]} 47. Rxa6 {[%emt 0:00:09]} bxc2 {[%emt 0:00:03]} 48. Kxc2 {[%emt 0:01:09]} Kd7 {[%emt 0:00:29]} 49. Ra8 {[%emt 0:09:07]} Ke7 {[%emt 0:00:06]} 50. a4 {[%emt 0:00:35]} Nf8 {[%emt 0:00:09]} 51. a5 {[%emt 0:01:52]} Nd7 {[%emt 0:21:46]} 52. a6 {[%emt 0:01:10]} Rb6 {[%emt 0:00:51]} 53. Ba5 {[%emt 0:00:33]} Rb5 {[%emt 0:01:32]} 54. Bd8+ {[%emt 0:00:16]} Kf7 {[%emt 0:00:01]} 55. Rc8 {[%emt 0:00:58]} 1-0

[Event "2nd Irena Warakomska Memorial-A"]
[Site "Suwalki"]
[Date "2018.08.07"]
[Round "8"]
[White "Lewtak, Damian"]
[Black "Markowski, Tomasz"]
[Result "1/2-1/2"]
[ECO "A45"]
[WhiteElo "2369"]
[BlackElo "2562"]
[Annotator "ChessBase"]
[PlyCount "123"]
[EventDate "2018.08.01"]
[EventType "swiss"]
[EventCountry "POL"]
[SourceTitle "playchess.com"]
[Source "ChessBase"]
[SourceQuality "1"]
[TimeControl "40/5400+30:1800+30"]

1. d4 {[%emt 0:00:00]} Nf6 {[%emt 0:01:27]} 2. c3 {[%emt 0:00:00]} e6 {[%emt 0:00:40]} 3. Bf4 {[%emt 0:00:00]} b6 {[%emt 0:00:23]} 4. e3 {[%emt 0:01:02]} Bb7 {[%emt 0:00:05]} 5. Nd2 {[%emt 0:00:08]} Be7 {[%emt 0:01:24]} 6. h3 {[%emt 0:01:21]} O-O {[%emt 0:00:07]} 7. Bh2 {[%emt 0:00:06]} c5 {[%emt 0:00:50]} 8. Ngf3 {[%emt 0:00:41]} Nc6 {[%emt 0:04:28]} 9. Bd3 {[%emt 0:01:08]} d5 {[%emt 0:02:02]} 10. O-O {[%emt 0:02:50]} Bd6 {[%emt 0:01:39]} 11. Ne5 {[%emt 0:00:28]} Qc7 {[%emt 0:00:14]} 12. f4 {[%emt 0:00:13]} Ne7 {[%emt 0:00:58]} 13. Qc2 {[%emt 0:04:56]} c4 {[%emt 0:01:47]} 14. Be2 {[%emt 0:00:06]} b5 {[%emt 0:02:19]} 15. Bf3 {[%emt 0:05:30]} Nf5 {[%emt 0:07:37]} 16. Rae1 {[%emt 0:01:25]} Nh4 {[%emt 0:00:24]} 17. Bd1 {[%emt 0:01:04]} Ne4 {[%emt 0:01:21]} 18. g3 {[%emt 0:25:01]} Nf5 {[%emt 0:01:45]} 19. g4 {[%emt 0:00:05]} Ne7 {[%emt 0:01:09]} 20. Bf3 {[%emt 0:01:58]} f5 {[%emt 0:04:00]} 21. Nxe4 {[%emt 0:04:45]} dxe4 {[%emt 0:00:38]} 22. Be2 {[%emt 0:00:16]} Nd5 {[%emt 0:05:56]} 23. Qc1 {[%emt 0:06:12]} a5 {[%emt 0:00:36]} 24. a4 {[%emt 0:05:45]} Ba6 {[%emt 0:01:51]} 25. axb5 {[%emt 0:07:32]} Bxb5 {[%emt 0:01:29]} 26. Qd2 {[%emt 0:00:07]} a4 {[%emt 0:03:33]} 27. Ra1 {[%emt 0:00:06]} Ra7 {[%emt 0:03:57]} 28. Ra2 {[%emt 0:02:11]} Rc8 {[%emt 0:03:35]} 29. Bg3 {[%emt 0:01:54]} Qe7 {[%emt 0:07:48]} 30. Kh2 {[%emt 0:00:47]} Rb7 {[%emt 0:04:17]} 31. Rfa1 {[%emt 0:02:51]} Qc7 {[%emt 0:03:04]} 32. Bd1 {[%emt 0:01:49]} Rcb8 {[%emt 0:01:05]} 33. Be2 {[%emt 0:01:49]} Ba6 {[%emt 0:00:40]} 34. Bd1 {[%emt 0:00:21]} Bb5 {[%emt 0:10:06]} 35. Be2 {[%emt 0:00:06]} h6 {[%emt 0:05:30]} 36. h4 {[%emt 0:02:32]} Ba6 {[%emt 0:00:41]} 37. Bd1 {[%emt 0:02:07]} Bb5 {[%emt 0:03:58]} 38. g5 {[%emt 0:00:31]} Be8 {[%emt 0:01:27]} 39. gxh6 {[%emt 0:00:26]} gxh6 {[%emt 0:00:05]} 40. Be2 {[%emt 0:00:00]} Bb5 {[%emt 0:00:00]} 41. Rg1 {[%emt 0:00:55]} Kh7 {[%emt 0:06:39]} 42. h5 {[%emt 0:00:42]} Rg8 {[%emt 0:03:00]} 43. Raa1 {[%emt 0:02:04]} Bxe5 {[%emt 0:00:56]} 44. dxe5 {[%emt 0:09:28]} Qb6 {[%emt 0:03:09]} 45. Bf2 {[%emt 0:00:05]} Nxf4 {[%emt 0:01:22]} 46. Rxg8 {[%emt 0:00:29]} Kxg8 {[%emt 0:00:16]} 47. Rg1+ {[%emt 0:00:05]} Kh7 {[%emt 0:01:07]} 48. Bh4 {[%emt 0:01:34]} Nd5 {[%emt 0:09:18]} 49. Bxc4 {[%emt 0:03:08]} Qxe3 {[%emt 0:04:01]} 50. Qxe3 {[%emt 0:00:08]} Nxe3 {[%emt 0:00:02]} 51. Bxe6 {[%emt 0:00:06]} Bc4 {[%emt 0:00:55]} 52. Bxc4 {[%emt 0:01:08]} Nxc4 {[%emt 0:00:07]} 53. e6 {[%emt 0:05:43]} Ne5 {[%emt 0:03:56]} 54. e7 {[%emt 0:07:45]} Rb8 {[%emt 0:00:12]} 55. Kg3 {[%emt 0:02:06]} Nd3 {[%emt 0:00:43]} 56. Rf1 {[%emt 0:02:42]} Rg8+ {[%emt 0:01:21]} 57. Kh3 {[%emt 0:00:10]} f4 {[%emt 0:00:31]} 58. Rg1 {[%emt 0:00:45]} Re8 {[%emt 0:01:34]} 59. Bf6 {[%emt 0:02:05]} e3 {[%emt 0:00:14]} 60. Rg7+ {[%emt 0:11:47]} Kh8 {[%emt 0:00:16]} 61. Kg4 {[%emt 0:00:16]} e2 {[%emt 0:00:36]} 62. Rg6+ 1/2-1/2